fUST/lending_fUST_20240726
["ID","MTS","AMOUNT","RATE_DAILY","PERIOD"]
[333226072,1721952643820,-526.53,0.00013698,2]
[333226074,1721952643830,-500.0,0.00013698,2]
[333226077,1721952643841,-500.0,0.00013698,2]
[333226079,1721952643852,-500.0,0.00013698,2]
[333226081,1721952643862,-1772.46,0.00013698,2]
[333226083,1721952643872,-1250.67,0.00013698,2]
[333226085,1721952643882,-500.0,0.00013698,2]
[333226087,1721952643893,-500.0,0.00013698,2]
[333226089,1721952643903,-644.61,0.00013698,2]
[333226091,1721952643914,-500.0,0.00013698,2]
[333226093,1721952643925,-500.0,0.00013698,2]
[333226096,1721952643935,-630.66,0.00013698,2]
[333226098,1721952643945,-500.0,0.00013698,2]
[333226100,1721952643957,-6602.7,0.00013698,2]
[333226102,1721952643968,-500.0,0.00013698,2]
[333226104,1721952643978,-500.0,0.00013698,2]
[333226106,1721952643988,-2340.78,0.00013698,2]
[333226108,1721952644001,-1594.16,0.00013698,2]
[333226110,1721952644012,-1054.29,0.00013698,2]
[333226112,1721952644024,-500.0,0.00013698,2]
[333226115,1721952644035,-689.06,0.00013698,2]
[333226117,1721952644046,-500.0,0.00013698,2]
[333226119,1721952644057,-574.47,0.00013698,2]
[333226121,1721952644068,-1243.45,0.00013698,2]
[333226123,1721952644081,-500.0,0.00013698,2]
[333226126,1721952644093,-500.0,0.00013698,2]
[333226128,1721952644103,-5494.18,0.00013698,2]
[333226130,1721952644113,-736.41,0.00013698,2]
[333226132,1721952644123,-500.0,0.00013698,2]
[333226134,1721952644133,-500.0,0.00013698,2]
[333226136,1721952644143,-500.0,0.00013698,2]
[333226138,1721952644154,-500.0,0.00013698,2]
[333226140,1721952644164,-500.0,0.00013698,2]
[333226142,1721952644175,-500.0,0.00013698,2]
[333226144,1721952644186,-500.0,0.00013698,2]
[333226146,1721952644196,-500.0,0.00013698,2]
[333226148,1721952644206,-500.0,0.00013698,2]
[333226151,1721952644216,-500.0,0.00013698,2]
[333226153,1721952644227,-500.0,0.00013698,2]
[333226155,1721952644239,-500.0,0.00013698,2]
[333226157,1721952644255,-500.0,0.00013698,2]
[333226159,1721952644264,-500.0,0.00013698,2]
[333226161,1721952644274,-500.0,0.00013698,2]
[333226163,1721952644283,-500.0,0.00013698,2]
[333226165,1721952644298,-500.0,0.00013698,2]
[333226167,1721952644309,-500.0,0.00013698,2]
[333226170,1721952644321,-500.0,0.00013698,2]
[333226172,1721952644332,-500.0,0.00013698,2]
[333226174,1721952644343,-500.0,0.00013698,2]
[333226176,1721952644355,-500.0,0.00013698,2]
[333226178,1721952644367,-500.0,0.00013698,2]
[333226180,1721952644378,-500.0,0.00013698,2]
[333226183,1721952644388,-500.0,0.00013698,2]
[333226185,1721952644398,-500.0,0.00013698,2]
[333226187,1721952644409,-584.48,0.00013698,2]
[333226189,1721952644419,-263.06626402,0.00013698,2]
[333226213,1721952644640,-236.93373598,0.00013698,2]
[333226215,1721952644650,-434.84563237,0.00013698,2]
[333226405,1721952646614,-65.15436763,0.00013698,2]
[333226407,1721952646624,-500.0,0.00013698,2]
[333226409,1721952646634,-1144.54,0.00013698,2]
[333226411,1721952646644,-500.0,0.00013698,2]
[333226413,1721952646655,-500.0,0.00013698,2]
[333226415,1721952646665,-500.0,0.00013698,2]
[333226417,1721952646674,-500.0,0.00013698,2]
[333226419,1721952646684,-500.0,0.00013698,2]
[333226421,1721952646694,-500.0,0.00013698,2]
[333226423,1721952646703,-500.0,0.00013698,2]
[333226425,1721952646713,-500.0,0.00013698,2]
[333226427,1721952646722,-500.0,0.00013698,2]
[333226429,1721952646732,-289.69,0.00013698,2]
[333226431,1721952646742,-500.0,0.00013698,2]
[333226433,1721952646752,-1209.28,0.00013698,2]
[333226435,1721952646763,-718.41,0.00013698,2]
[333226437,1721952646772,-1055.07,0.00013698,2]
[333226439,1721952646782,-500.0,0.00013698,2]
[333226441,1721952646792,-732.07,0.00013698,2]
[333226443,1721952646801,-500.0,0.00013698,2]
[333226445,1721952646811,-500.0,0.00013698,2]
[333226447,1721952646822,-500.0,0.00013698,2]
[333226449,1721952646831,-767.51,0.00013698,2]
[333226451,1721952646840,-500.0,0.00013698,2]
[333226453,1721952646850,-500.0,0.00013698,2]
[333226455,1721952646861,-512.70080887,0.00013698,2]
[333226457,1721952646870,-500.0,0.00013698,2]
[333226459,1721952646880,-645.58,0.00013698,2]
[333226461,1721952646889,-501.3188156,0.00013698,2]
[333226464,1721952646908,-500.0,0.00013698,2]
[333226466,1721952646919,-954.67,0.00013698,2]
[333226468,1721952646929,-501.43167891,0.00013698,2]
[333226470,1721952646940,-500.0,0.00013698,2]
[333226472,1721952646950,-578.19,0.00013698,2]
[333226474,1721952646960,-500.0,0.00013698,2]
[333226476,1721952646970,-500.0,0.00013698,2]
[333226478,1721952646979,-917.24,0.00013698,2]
[333226480,1721952646990,-856.9,0.00013698,2]
[333226482,1721952647000,-500.0,0.00013698,2]
[333226484,1721952647010,-500.0,0.00013698,2]
[333226486,1721952647020,-500.0,0.00013698,2]
[333226488,1721952647030,-872.82,0.00013698,2]
[333226490,1721952647040,-500.0,0.00013698,2]
[333226492,1721952647049,-1841.9,0.00013698,2]
[333226494,1721952647060,-500.0,0.00013698,2]
[333226496,1721952647072,-504.10294579,0.00013698,2]
[333226498,1721952647082,-567.59,0.00013698,2]
[333226500,1721952647092,-500.0,0.00013698,2]
[333226502,1721952647102,-1401.19,0.00013698,2]
[333226504,1721952647113,-500.0,0.00013698,2]
[333226506,1721952647123,-647.33821386,0.00013698,2]
[333226508,1721952647133,-599.98,0.00013698,2]
[333226510,1721952647143,-500.0,0.00013698,2]
[333226512,1721952647154,-500.0,0.00013698,2]
[333226514,1721952647164,-266.42270918,0.00013698,2]
[333226516,1721952647174,-806.04,0.00013698,2]
[333226518,1721952647184,-500.0,0.00013698,2]
[333226520,1721952647193,-500.0,0.00013698,2]
[333226522,1721952647203,-500.0,0.00013698,2]
[333226524,1721952647214,-1489.53,0.00013698,2]
[333226526,1721952647223,-500.0,0.00013698,2]
[333226528,1721952647233,-500.0,0.00013698,2]
[333226530,1721952647247,-500.0,0.00013698,2]
[333226532,1721952647256,-2930.25,0.00013698,2]
[333226534,1721952647266,-1063.63,0.00013698,2]
[333226536,1721952647276,-500.0,0.00013698,2]
[333226538,1721952647287,-500.0,0.00013698,2]
[333226540,1721952647297,-230.04448136,0.00013698,2]
[333226542,1721952647308,-665.29271323,0.00013698,2]
[333226544,1721952647319,-500.0,0.00013698,2]
[333226546,1721952647330,-665.29271323,0.00013698,2]
[333226548,1721952647340,-665.29271323,0.00013698,2]
[333226550,1721952647350,-461.47561502,0.00013698,2]
[333226552,1721952647360,-665.29271323,0.00013698,2]
[333226554,1721952647371,-665.29271323,0.00013698,2]
[333226556,1721952647381,-665.29271323,0.00013698,2]
[333226558,1721952647392,-665.29271323,0.00013698,2]
[333226560,1721952647402,-665.29271323,0.00013698,2]
[333226562,1721952647415,-665.29271323,0.00013698,2]
[333226564,1721952647425,-665.29271323,0.00013698,2]
[333226566,1721952647435,-665.29271323,0.00013698,2]
[333226568,1721952647445,-665.29271323,0.00013698,2]
[333226570,1721952647455,-665.29271323,0.00013698,2]
[333226572,1721952647465,-665.29271323,0.00013698,2]
[333226574,1721952647474,-665.29271323,0.00013698,2]
[333226576,1721952647484,-665.29271323,0.00013698,2]
[333226577,1721952647494,-665.29271323,0.00013698,2]
[333226580,1721952647504,-500.0,0.00013698,2]
[333226582,1721952647514,-500.0,0.00013698,2]
[333226584,1721952647524,-500.0,0.00013698,2]
[333226586,1721952647534,-500.0,0.00013698,2]
[333226588,1721952647543,-500.0,0.00013698,2]
[333226590,1721952647553,-500.0,0.00013698,2]
[333226592,1721952647563,-500.0,0.00013698,2]
[333226593,1721952647574,-500.0,0.00013698,2]
[333226595,1721952647584,-983.8,0.00013698,2]
[333226597,1721952647594,-500.0,0.00013698,2]
[333226599,1721952647604,-500.0,0.00013698,2]
[333226601,1721952647614,-500.0,0.00013698,2]
[333226603,1721952647623,-500.0,0.00013698,2]
[333226605,1721952647633,-3000.0,0.00013699,2]
[333226607,1721952647643,-406.76703,0.00013699,2]
[333226609,1721952647653,-151.0,0.00013783,2]
[333226611,1721952647663,-1586.12,0.00013961,2]
[333226614,1721952647673,-1586.12,0.00013961,2]
[333226616,1721952647683,-1586.12,0.00013961,2]
[333226618,1721952647694,-1586.12,0.00013961,2]
[333226620,1721952647704,-1586.12,0.00013961,2]
[333226622,1721952647714,-1586.12,0.00013961,2]
[333226624,1721952647724,-1586.12,0.00013961,2]
[333226626,1721952647734,-1586.12,0.00013961,2]
[333226628,1721952647744,-1586.12,0.00013961,2]
[333226630,1721952647755,-500.0,0.00013961,2]
[333226632,1721952647765,-1586.12,0.0001397,2]
[333226634,1721952647774,-1586.12,0.0001397,2]
[333226636,1721952647784,-1586.12,0.0001397,2]
[333226638,1721952647795,-1586.12,0.0001397,2]
[333226640,1721952647805,-1586.29810102,0.0001397,2]
[333226642,1721952647815,-151.0,0.00013971,2]
[333226644,1721952647827,-151.0,0.00013971,2]
[333226646,1721952647837,-151.0,0.00013971,2]
[333226648,1721952647846,-151.0,0.00013971,2]
[333226650,1721952647855,-185.673351,0.00013971,2]
[333226652,1721952647864,-185.673351,0.00013971,2]
[333226654,1721952647874,-248.151094,0.00013972,2]
[333226656,1721952647884,-500.0,0.00013972,2]
[333226658,1721952647894,-547.94,0.00013972,2]
[333226660,1721952647903,-500.0,0.00013972,2]
[333226662,1721952647913,-500.0,0.00013972,2]
[333226664,1721952647923,-500.0,0.00013972,2]
[333226666,1721952647933,-500.0,0.00013972,2]
[333226668,1721952647942,-570.88425661,0.00013972,2]
[333226670,1721952647952,-500.0,0.00013972,2]
[333226672,1721952647963,-500.0,0.00013972,2]
[333226674,1721952647973,-500.0,0.00013972,2]
[333226676,1721952647984,-500.0,0.00013972,2]
[333226678,1721952647994,-500.0,0.00013972,2]
[333226680,1721952648006,-500.0,0.00013972,2]
[333226682,1721952648017,-760.41,0.00013972,2]
[333226684,1721952648029,-500.0,0.00013972,2]
[333226686,1721952648039,-500.0,0.00013972,2]
[333226688,1721952648050,-500.0,0.00013972,2]
[333226691,1721952648063,-825.14,0.00013972,2]
[333226693,1721952648076,-259.57550234,0.00013972,2]
[333226695,1721952648088,-500.0,0.00013972,2]
[333226697,1721952648100,-500.0,0.00013972,2]
[333226699,1721952648111,-500.0,0.00013972,2]
[333226702,1721952648122,-1205.77,0.00013972,2]
[333226704,1721952648132,-500.0,0.00013972,2]
[333226706,1721952648144,-703.81,0.00013972,2]
[333226708,1721952648154,-500.0,0.00013972,2]
[333226710,1721952648164,-500.0,0.00013972,2]
[333226712,1721952648174,-500.0,0.00013972,2]
[333226714,1721952648184,-500.0,0.00013972,2]
[333226716,1721952648195,-500.0,0.00013972,2]
[333226718,1721952648206,-818.08,0.00013972,2]
[333226720,1721952648217,-500.0,0.00013972,2]
[333226722,1721952648227,-500.0,0.00013972,2]
[333226724,1721952648238,-500.0,0.00013972,2]
[333226726,1721952648255,-500.0,0.00013972,2]
[333226728,1721952648264,-500.0,0.00013972,2]
[333226730,1721952648275,-500.0,0.00013972,2]
[333226732,1721952648287,-500.0,0.00013972,2]
[333226734,1721952648297,-500.0,0.00013972,2]
[333226736,1721952648307,-500.0,0.00013972,2]
[333226738,1721952648319,-500.0,0.00013972,2]
[333226740,1721952648331,-603.1,0.00013972,2]
[333226760,1721952648341,-500.0,0.00013972,2]
[333226763,1721952648539,-500.0,0.00013972,2]
[333226765,1721952648550,-500.0,0.00013972,2]
[333226767,1721952648560,-772.94,0.00013972,2]
[333226769,1721952648572,-667.97,0.00013972,2]
[333226771,1721952648581,-500.0,0.00013972,2]
[333226773,1721952648591,-528.08,0.00013972,2]
[333226775,1721952648601,-500.0,0.00013972,2]
[333226777,1721952648614,-500.0,0.00013972,2]
[333226779,1721952648623,-500.0,0.00013972,2]
[333226780,1721952648633,-500.0,0.00013972,2]
[333226781,1721952648642,-753.36,0.00013972,2]
[333226782,1721952648652,-500.0,0.00013972,2]
[333226783,1721952648664,-500.0,0.00013972,2]
[333226784,1721952648674,-467.55976054,0.00013972,2]
[333226785,1721952648684,-500.0,0.00013972,2]
[333226786,1721952648699,-500.0,0.00013972,2]
[333226787,1721952648708,-528.81,0.00013972,2]
[333226788,1721952648720,-500.0,0.00013972,2]
[333226789,1721952648731,-500.0,0.00013972,2]
[333226790,1721952648741,-500.0,0.00013972,2]
[333226791,1721952648753,-562.14,0.00013972,2]
[333226792,1721952648763,-500.0,0.00013972,2]
[333226793,1721952648773,-701.99,0.00013972,2]
[333226794,1721952648783,-542.58479869,0.00013972,2]
[333226795,1721952648792,-902.84,0.00013972,2]
[333226796,1721952648802,-576.92,0.00013972,2]
[333226797,1721952648812,-500.0,0.00013972,2]
[333226798,1721952648822,-724.44,0.00013972,2]
[333226799,1721952648832,-500.0,0.00013972,2]
[333226800,1721952648843,-534.84,0.00013972,2]
[333226801,1721952648853,-500.0,0.00013972,2]
[333226802,1721952648863,-500.0,0.00013972,2]
[333226803,1721952648874,-500.0,0.00013972,2]
[333226804,1721952648885,-500.0,0.00013972,2]
[333226805,1721952648895,-500.0,0.00013972,2]
[333226806,1721952648905,-564.32,0.00013972,2]
[333226808,1721952648915,-500.0,0.00013972,2]
[333226809,1721952648925,-878.47,0.00013972,2]
[333226810,1721952648934,-821.03,0.00013972,2]
[333226812,1721952648944,-151.0,0.00013972,2]
[333226814,1721952648953,-500.0,0.00013972,2]
[333226816,1721952648962,-500.0,0.00013972,2]
[333226818,1721952648972,-500.0,0.00013972,2]
[333226820,1721952648981,-500.0,0.00013972,2]
[333226822,1721952648991,-500.0,0.00013972,2]
[333226824,1721952649001,-1003.43,0.00013972,2]
[333226826,1721952649011,-500.0,0.00013972,2]
[333226828,1721952649021,-883.12,0.00013972,2]
[333226830,1721952649031,-500.0,0.00013972,2]
[333226832,1721952649041,-547.08,0.00013972,2]
[333226834,1721952649051,-583.13,0.00013972,2]
[333226836,1721952649062,-500.0,0.00013972,2]
[333226838,1721952649075,-500.0,0.00013972,2]
[333226840,1721952649084,-500.0,0.00013972,2]
[333226842,1721952649093,-702.68,0.00013972,2]
[333226844,1721952649102,-660.38,0.00013972,2]
[333226846,1721952649112,-271.46926943,0.00013972,2]
[333226848,1721952649121,-500.0,0.00013972,2]
[333226850,1721952649131,-623.65,0.00013972,2]
[333226852,1721952649141,-500.0,0.00013972,2]
[333226854,1721952649152,-500.0,0.00013972,2]
[333226856,1721952649162,-938.9,0.00013972,2]
[333226858,1721952649173,-500.0,0.00013972,2]
[333226860,1721952649184,-557.89,0.00013972,2]
[333226862,1721952649195,-622.24557272,0.00013972,2]
[333226864,1721952649204,-899.35,0.00013972,2]
[333226866,1721952649214,-619.01,0.00013972,2]
[333226868,1721952649225,-500.0,0.00013972,2]
[333226870,1721952649235,-549.03,0.00013972,2]
[333226872,1721952649247,-744.09,0.00013972,2]
[333226874,1721952649257,-500.0,0.00013972,2]
[333226876,1721952649268,-500.0,0.00013972,2]
[333226878,1721952649279,-563.06,0.00013972,2]
[333226880,1721952649291,-500.0,0.00013972,2]
[333226882,1721952649301,-500.0,0.00013972,2]
[333226884,1721952649312,-500.0,0.00013972,2]
[333226886,1721952649323,-1300.34,0.00013972,2]
[333226888,1721952649336,-676.35,0.00013972,2]
[333226890,1721952649347,-500.0,0.00013972,2]
[333226892,1721952649357,-500.0,0.00013972,2]
[333226894,1721952649367,-1123.65,0.00013972,2]
[333226896,1721952649377,-1121.16,0.00013972,2]
[333226898,1721952649387,-1055.01,0.00013972,2]
[333226900,1721952649397,-652.55,0.00013972,2]
[333226902,1721952649408,-526.53,0.00013972,2]
[333226904,1721952649417,-500.0,0.00013972,2]
[333226906,1721952649428,-592.04177035,0.00013972,2]
[333226908,1721952649439,-151.0,0.00013972,2]
[333226910,1721952649449,-500.0,0.00013972,2]
[333226912,1721952649461,-1772.46,0.00013972,2]
[333226914,1721952649472,-1250.67,0.00013972,2]
[333226916,1721952649481,-500.0,0.00013972,2]
[333226918,1721952649492,-630.66,0.00013972,2]
[333226920,1721952649503,-500.0,0.00013972,2]
[333226923,1721952649513,-6602.7,0.00013972,2]
[333226924,1721952649524,-500.0,0.00013972,2]
[333226927,1721952649536,-500.0,0.00013972,2]
[333226928,1721952649547,-2340.78,0.00013972,2]
[333226930,1721952649557,-1594.16,0.00013972,2]
[333226932,1721952649567,-1054.29,0.00013972,2]
[333226934,1721952649577,-151.0,0.00013972,2]
[333226936,1721952649587,-500.0,0.00013972,2]
[333226938,1721952649597,-689.06,0.00013972,2]
[333226940,1721952649607,-500.0,0.00013972,2]
[333226942,1721952649617,-151.0,0.00013972,2]
[333226944,1721952649627,-574.47,0.00013972,2]
[333226946,1721952649637,-151.0,0.00013972,2]
[333226948,1721952649647,-1243.45,0.00013972,2]
[333226950,1721952649657,-151.0,0.00013972,2]
[333226953,1721952649667,-500.0,0.00013972,2]
[333226955,1721952649677,-500.0,0.00013972,2]
[333226957,1721952649687,-5494.18,0.00013972,2]
[333226959,1721952649698,-736.41,0.00013972,2]
[333226961,1721952649708,-500.0,0.00013972,2]
[333226963,1721952649718,-500.0,0.00013972,2]
[333226965,1721952649728,-584.48,0.00013972,2]
[333226967,1721952649739,-1144.54,0.00013972,2]
[333226969,1721952649750,-500.0,0.00013972,2]
[333226971,1721952649759,-287.83,0.00013972,2]
[333226973,1721952649769,-1209.28,0.00013972,2]
[333226975,1721952649779,-718.41,0.00013972,2]
[333226977,1721952649789,-1055.07,0.00013972,2]
[333226979,1721952649800,-732.07,0.00013972,2]
[333226981,1721952649810,-500.0,0.00013972,2]
[333226983,1721952649820,-767.51,0.00013972,2]
[333226985,1721952649830,-500.0,0.00013972,2]
[333226987,1721952649841,-500.0,0.00013972,2]
[333226989,1721952649850,-500.0,0.00013972,2]
[333226991,1721952649860,-645.58,0.00013972,2]
[333226992,1721952649870,-500.0,0.00013972,2]
[333226994,1721952649880,-954.67,0.00013972,2]
[333226997,1721952649891,-500.0,0.00013972,2]
[333226998,1721952649902,-500.0,0.00013972,2]
[333227000,1721952649912,-151.0,0.00013972,2]
[333227002,1721952649922,-500.0,0.00013972,2]
[333227004,1721952649932,-917.24,0.00013972,2]
[333227006,1721952649942,-856.9,0.00013972,2]
[333227008,1721952649953,-500.0,0.00013972,2]
[333227010,1721952649963,-500.0,0.00013972,2]
[333227012,1721952649972,-500.0,0.00013972,2]
[333227014,1721952649982,-872.82,0.00013972,2]
[333227016,1721952649992,-500.0,0.00013972,2]
[333227018,1721952650002,-1841.9,0.00013972,2]
[333227020,1721952650012,-500.0,0.00013972,2]
[333227022,1721952650022,-151.0,0.00013972,2]
[333227024,1721952650031,-567.59,0.00013972,2]
[333227026,1721952650041,-1401.19,0.00013972,2]
[333227028,1721952650051,-500.0,0.00013972,2]
[333227029,1721952650061,-599.98,0.00013972,2]
[333227031,1721952650073,-500.0,0.00013972,2]
[333227033,1721952650083,-806.04,0.00013972,2]
[333227035,1721952650092,-500.0,0.00013972,2]
[333227037,1721952650102,-500.0,0.00013972,2]
[333227039,1721952650112,-500.0,0.00013972,2]
[333227041,1721952650123,-1489.53,0.00013972,2]
[333227043,1721952650132,-151.0,0.00013972,2]
[333227045,1721952650143,-2930.25,0.00013972,2]
[333227047,1721952650153,-1063.63,0.00013972,2]
[333227049,1721952650162,-500.0,0.00013972,2]
[333227051,1721952650172,-151.0,0.00013972,2]
[333227053,1721952650182,-500.0,0.00013972,2]
[333227055,1721952650191,-500.0,0.00013972,2]
[333227057,1721952650200,-500.0,0.00013972,2]
[333227059,1721952650211,-500.0,0.00013972,2]
[333227061,1721952650222,-983.8,0.00013972,2]
[333227063,1721952650232,-500.0,0.00013972,2]
[333227065,1721952650244,-157.640074,0.00013999,2]
[333227067,1721952650256,-172.846676,0.00013999,2]
[333227069,1721952650267,-150.112233,0.00014,2]
[333227072,1721952650278,-150.0,0.00014073,2]
[333227074,1721952650289,-505.0,0.00014073,2]
[333227076,1721952650300,-1409.0,0.00014073,2]
[333227078,1721952650310,-151.0,0.00014226,2]
[333227080,1721952650325,-151.0,0.00014226,2]
[333227082,1721952650335,-185.673351,0.00014226,2]
[333227084,1721952650344,-185.673351,0.00014226,2]
[333227086,1721952650355,-157.640074,0.00014232,2]
[333227088,1721952650364,-151.0,0.00014236,2]
[333227090,1721952650373,-500.0,0.00014246,2]
[333227092,1721952650382,-547.94,0.00014246,2]
[333227094,1721952650392,-500.0,0.00014246,2]
[333227096,1721952650401,-500.0,0.00014246,2]
[333227098,1721952650411,-506.38885137,0.00014246,2]
[333227100,1721952650420,-500.0,0.00014246,2]
[333227102,1721952650430,-500.0,0.00014246,2]
[333227104,1721952650439,-437.45632469,0.00014246,2]
[333227106,1721952650450,-500.0,0.00014246,2]
[333227108,1721952650459,-760.41,0.00014246,2]
[333227110,1721952650469,-500.0,0.00014246,2]
[333227112,1721952650478,-459.73632781,0.00014246,2]
[333227114,1721952650487,-500.0,0.00014246,2]
[333227116,1721952650497,-825.14,0.00014246,2]
[333227118,1721952650507,-500.0,0.00014246,2]
[333227120,1721952650516,-500.0,0.00014246,2]
[333227122,1721952650526,-500.0,0.00014246,2]
[333227124,1721952650536,-1205.77,0.00014246,2]
[333227126,1721952650546,-500.0,0.00014246,2]
[333227128,1721952650557,-703.81,0.00014246,2]
[333227130,1721952650570,-500.0,0.00014246,2]
[333227133,1721952650581,-500.0,0.00014246,2]
[333227135,1721952650593,-300.62457909,0.00014246,2]
[333227137,1721952650603,-500.0,0.00014246,2]
[333227139,1721952650612,-818.08,0.00014246,2]
[333227141,1721952650624,-500.0,0.00014246,2]
[333227144,1721952650635,-437.12374577,0.00014246,2]
[333227146,1721952650647,-500.0,0.00014246,2]
[333227148,1721952650658,-500.0,0.00014246,2]
[333227150,1721952650670,-500.0,0.00014246,2]
[333227152,1721952650681,-603.1,0.00014246,2]
[333227155,1721952650693,-500.0,0.00014246,2]
[333227157,1721952650703,-500.0,0.00014246,2]
[333227159,1721952650714,-772.94,0.00014246,2]
[333227161,1721952650724,-667.97,0.00014246,2]
[333227163,1721952650735,-528.08,0.00014246,2]
[333227165,1721952650744,-500.0,0.00014246,2]
[333227167,1721952650755,-500.0,0.00014246,2]
[333227169,1721952650766,-500.0,0.00014246,2]
[333227172,1721952650777,-753.36,0.00014246,2]
[333227174,1721952650787,-500.0,0.00014246,2]
[333227176,1721952650797,-500.0,0.00014246,2]
[333227178,1721952650807,-500.0,0.00014246,2]
[333227180,1721952650818,-500.0,0.00014246,2]
[333227182,1721952650828,-528.81,0.00014246,2]
[333227184,1721952650837,-500.0,0.00014246,2]
[333227186,1721952650847,-500.0,0.00014246,2]
[333227188,1721952650857,-500.0,0.00014246,2]
[333227190,1721952650867,-562.14,0.00014246,2]
[333227192,1721952650876,-500.0,0.00014246,2]
[333227194,1721952650885,-701.99,0.00014246,2]
[333227196,1721952650895,-902.84,0.00014246,2]
[333227198,1721952650904,-576.92,0.00014246,2]
[333227200,1721952650913,-500.0,0.00014246,2]
[333227202,1721952650922,-724.44,0.00014246,2]
[333227204,1721952650932,-534.84,0.00014246,2]
[333227206,1721952650942,-500.0,0.00014246,2]
[333227208,1721952650952,-500.0,0.00014246,2]
[333227210,1721952650961,-500.0,0.00014246,2]
[333227212,1721952650970,-500.0,0.00014246,2]
[333227214,1721952650979,-170.85652846,0.00014246,2]
[333227216,1721952650988,-564.32,0.00014246,2]
[333227218,1721952650998,-500.0,0.00014246,2]
[333227220,1721952651008,-878.47,0.00014246,2]
[333227222,1721952651017,-821.03,0.00014246,2]
[333227224,1721952651027,-500.0,0.00014246,2]
[333227226,1721952651038,-500.0,0.00014246,2]
[333227228,1721952651048,-500.0,0.00014246,2]
[333227230,1721952651058,-500.0,0.00014246,2]
[333227232,1721952651071,-1003.43,0.00014246,2]
[333227234,1721952651082,-590.291977,0.00014246,2]
[333227236,1721952651092,-883.12,0.00014246,2]
[333227238,1721952651102,-590.291977,0.00014246,2]
[333227240,1721952651112,-500.0,0.00014246,2]
[333227242,1721952651123,-547.08,0.00014246,2]
[333227245,1721952651134,-583.13,0.00014246,2]
[333227247,1721952651144,-500.0,0.00014246,2]
[333227249,1721952651155,-500.0,0.00014246,2]
[333227251,1721952651167,-702.68,0.00014246,2]
[333227253,1721952651178,-660.38,0.00014246,2]
[333227255,1721952651188,-500.0,0.00014246,2]
[333227257,1721952651199,-623.65,0.00014246,2]
[333227260,1721952651209,-500.0,0.00014246,2]
[333227262,1721952651219,-151.0,0.00014246,2]
[333227264,1721952651229,-271.148204,0.00014246,2]
[333227266,1721952651240,-500.0,0.00014246,2]
[333227268,1721952651256,-938.9,0.00014246,2]
[333227270,1721952651266,-151.0,0.00014246,2]
[333227272,1721952651275,-151.0,0.00014246,2]
[333227274,1721952651285,-500.0,0.00014246,2]
[333227276,1721952651294,-557.89,0.00014246,2]
[333227278,1721952651303,-899.35,0.00014246,2]
[333227280,1721952651313,-151.0,0.00014246,2]
[333227282,1721952651326,-619.01,0.00014246,2]
[333227284,1721952651337,-500.0,0.00014246,2]
[333227286,1721952651347,-549.03,0.00014246,2]